fUSD/lending_fUSD_20240426
["ID","MTS","AMOUNT","RATE_DAILY","PERIOD"]
[323583515,1714096234456,-500.0,0.00010958,2]
[323583516,1714096234466,-500.0,0.00010958,2]
[323583517,1714096234475,-500.0,0.00010958,2]
[323583518,1714096234484,-506.30232372,0.00010958,2]
[323583519,1714096234494,-589.05,0.00010958,2]
[323583520,1714096234502,-500.0,0.00010958,2]
[323583521,1714096234512,-502.62434074,0.00010958,2]
[323583522,1714096234521,-500.0,0.00010958,2]
[323583523,1714096234530,-500.0,0.00010958,2]
[323583524,1714096234539,-504.78711274,0.00010958,2]
[323583525,1714096234548,-500.0,0.00010958,2]
[323583526,1714096234557,-500.0,0.00010958,2]
[323583527,1714096234567,-510.90925021,0.00010958,2]
[323583528,1714096234576,-500.0,0.00010958,2]
[323583529,1714096234586,-500.0,0.00010958,2]
[323583530,1714096234596,-500.0,0.00010958,2]
[323583531,1714096234605,-500.0,0.00010958,2]
[323583532,1714096234614,-505.7334075,0.00010958,2]
[323583533,1714096234624,-500.0,0.00010958,2]
[323583534,1714096234633,-500.0,0.00010958,2]
[323583535,1714096234642,-500.0,0.00010958,2]
[323583536,1714096234651,-500.0,0.00010958,2]
[323583537,1714096234660,-504.20368202,0.00010958,2]
[323583538,1714096234669,-500.0,0.00010958,2]
[323583539,1714096234678,-505.81944899,0.00010958,2]
[323583540,1714096234687,-500.0,0.00010958,2]
[323583541,1714096234697,-500.0,0.00010958,2]
[323583542,1714096234709,-667.92,0.00010958,2]
[323583543,1714096234717,-278.0112789,0.00010958,2]
[323583544,1714096234728,-500.0,0.00010958,2]
[323583545,1714096234737,-500.0,0.00010958,2]
[323583546,1714096234746,-500.0,0.00010958,2]
[323583547,1714096234755,-600.26,0.00010958,2]
[323583548,1714096234765,-500.0,0.00010958,2]
[323583549,1714096234774,-502.45420466,0.00010958,2]
[323583550,1714096234783,-500.0,0.00010958,2]
[323583551,1714096234792,-500.0,0.00010958,2]
[323583552,1714096234801,-500.0,0.00010958,2]
[323583553,1714096234811,-500.0,0.00010958,2]
[323583554,1714096234820,-500.0,0.00010958,2]
[323583555,1714096234829,-502.75285037,0.00010958,2]
[323583556,1714096234840,-500.0,0.00010958,2]
[323583557,1714096234849,-508.55031703,0.00010958,2]
[323583558,1714096234858,-500.0,0.00010958,2]
[323583559,1714096234868,-504.94212366,0.00010958,2]
[323583560,1714096234877,-500.0,0.00010958,2]
[323583561,1714096234886,-574.58611108,0.00010958,2]
[323583562,1714096234895,-508.5494893,0.00010958,2]
[323583563,1714096234905,-504.41747774,0.00010958,2]
[323583564,1714096234914,-502.68304854,0.00010958,2]
[323583565,1714096234925,-500.0,0.00010958,2]
[323583566,1714096234935,-500.0,0.00010958,2]
[323583567,1714096234944,-503.88201758,0.00010958,2]
[323583568,1714096234955,-501.73140633,0.00010958,2]
[323583569,1714096234970,-502.12716117,0.00010958,2]
[323583570,1714096234979,-621.72,0.00010958,2]
[323583571,1714096234988,-500.0,0.00010958,2]
[323583572,1714096234997,-500.0,0.00010958,2]
[323583573,1714096235007,-505.06829622,0.00010958,2]
[323583574,1714096235016,-545.84,0.00010958,2]
[323583575,1714096235025,-500.0,0.00010958,2]
[323583576,1714096235035,-500.0,0.00010958,2]
[323583577,1714096235045,-500.0,0.00010958,2]
[323583578,1714096235055,-500.0,0.00010958,2]
[323583579,1714096235065,-500.0,0.00010958,2]
[323583580,1714096235074,-500.0,0.00010958,2]
[323583581,1714096235083,-500.0,0.00010958,2]
[323583582,1714096235093,-579.12553914,0.00010958,2]
[323583583,1714096235103,-500.0,0.00010958,2]
[323583584,1714096235112,-500.0,0.00010958,2]
[323583585,1714096235122,-500.0,0.00010958,2]
[323583586,1714096235132,-503.55028238,0.00010958,2]
[323583587,1714096235141,-500.0,0.00010958,2]
[323583588,1714096235151,-715.17,0.00010958,2]
[323583589,1714096235160,-500.0,0.00010958,2]
[323583590,1714096235169,-272.68813106,0.00010958,2]
[323583591,1714096235178,-250.30616243,0.00010958,2]
[323583592,1714096235187,-500.0,0.00010958,2]
[323583593,1714096235196,-504.49961474,0.00010958,2]
[323583594,1714096235211,-510.27419905,0.00010958,2]
[323583595,1714096235220,-500.0,0.00010958,2]
[323583596,1714096235229,-500.0,0.00010958,2]
[323583597,1714096235239,-500.0,0.00010958,2]
[323583598,1714096235248,-500.0,0.00010958,2]
[323583599,1714096235258,-941.72,0.00010958,2]
[323583600,1714096235269,-500.0,0.00010958,2]
[323583601,1714096235279,-500.0,0.00010958,2]
[323583602,1714096235288,-506.30398185,0.00010958,2]
[323583603,1714096235297,-500.0,0.00010958,2]
[323583604,1714096235307,-500.0,0.00010958,2]
[323583605,1714096235316,-500.0,0.00010958,2]
[323583606,1714096235326,-500.0,0.00010958,2]
[323583607,1714096235335,-500.0,0.00010958,2]
[323583608,1714096235346,-506.57,0.00010958,2]
[323583609,1714096235356,-500.0,0.00010958,2]
[323583610,1714096235366,-504.93653916,0.00010958,2]
[323583611,1714096235375,-500.0,0.00010958,2]
[323583612,1714096235385,-500.0,0.00010958,2]
[323583613,1714096235395,-161.11547254,0.00010958,2]
[323583614,1714096235404,-799.07,0.00010958,2]
[323583615,1714096235414,-500.0,0.00010958,2]
[323583616,1714096235423,-549.71195123,0.00010958,2]
[323583617,1714096235433,-500.0,0.00010958,2]
[323583618,1714096235443,-500.0,0.00010958,2]
[323583619,1714096235453,-500.0,0.00010958,2]
[323583620,1714096235470,-500.0,0.00010958,2]
[323583621,1714096235480,-500.0,0.00010958,2]
[323583622,1714096235489,-502.04329591,0.00010958,2]
[323583623,1714096235499,-608.3,0.00010958,2]
[323583624,1714096235508,-500.0,0.00010958,2]
[323583625,1714096235518,-500.75163293,0.00010958,2]
[323583626,1714096235527,-500.0,0.00010958,2]
[323583627,1714096235537,-258.85777239,0.00010958,2]
[323583628,1714096235546,-500.0,0.00010958,2]
[323583629,1714096235556,-500.0,0.00010958,2]
[323583630,1714096235565,-505.03550823,0.00010958,2]
[323583631,1714096235574,-500.0,0.00010958,2]
[323583632,1714096235584,-500.0,0.00010958,2]
[323583633,1714096235593,-500.0,0.00010958,2]
[323583634,1714096235602,-519.84596225,0.00010958,2]
[323583635,1714096235612,-500.0,0.00010958,2]
[323583636,1714096235621,-500.0,0.00010958,2]
[323583637,1714096235631,-500.0,0.00010958,2]
[323583638,1714096235641,-1048.12,0.00010958,2]
[323583639,1714096235650,-500.0,0.00010958,2]
[323583640,1714096235660,-500.0,0.00010958,2]
[323583641,1714096235669,-500.0,0.00010958,2]
[323583642,1714096235678,-500.0,0.00010958,2]
[323583643,1714096235688,-511.79859079,0.00010958,2]
[323583644,1714096235697,-500.0,0.00010958,2]
[323583645,1714096235710,-500.0,0.00010958,2]
[323583646,1714096235719,-354.42,0.00010958,2]
[323583647,1714096235728,-500.0,0.00010958,2]
[323583648,1714096235738,-502.60311111,0.00010958,2]
[323583649,1714096235748,-500.0,0.00010958,2]
[323583650,1714096235757,-507.47578859,0.00010958,2]
[323583651,1714096235766,-500.0,0.00010958,2]
[323583652,1714096235776,-505.05482577,0.00010958,2]
[323583653,1714096235785,-922.97,0.00010958,2]
[323583654,1714096235794,-844.84,0.00010958,2]
[323583655,1714096235803,-663.9,0.00010958,2]
[323583656,1714096235812,-500.0,0.00010958,2]
[323583657,1714096235821,-532.12726005,0.00010958,2]
[323583658,1714096235831,-500.0,0.00010958,2]
[323583659,1714096235840,-503.72647004,0.00010958,2]
[323583660,1714096235849,-500.0,0.00010958,2]
[323583661,1714096235858,-500.0,0.00010958,2]
[323583662,1714096235867,-500.0,0.00010958,2]
[323583663,1714096235877,-517.27304239,0.00010958,2]
[323583664,1714096235886,-500.0,0.00010958,2]
[323583665,1714096235895,-500.0,0.00010958,2]
[323583666,1714096235905,-500.0,0.00010958,2]
[323583667,1714096235914,-730.39,0.00010958,2]
[323583668,1714096235923,-506.90008655,0.00010958,2]
[323583669,1714096235932,-523.58652964,0.00010958,2]
[323583670,1714096235942,-516.88,0.00010958,2]
[323583671,1714096235951,-535.4544806,0.00010958,2]
[323583672,1714096235964,-500.0,0.00010958,2]
[323583673,1714096235974,-500.0,0.00010958,2]
[323583674,1714096235983,-504.47385163,0.00010958,2]
[323583675,1714096235992,-500.0,0.00010958,2]
[323583676,1714096236001,-551.74277312,0.00010958,2]
[323583677,1714096236010,-502.17511533,0.00010958,2]
[323583678,1714096236019,-765.5,0.00010958,2]
[323583679,1714096236028,-502.41221001,0.00010958,2]
[323583680,1714096236037,-500.0,0.00010958,2]
[323583681,1714096236046,-562.73,0.00010958,2]
[323583682,1714096236054,-500.0,0.00010958,2]
[323583683,1714096236064,-501.54445478,0.00010958,2]
[323583684,1714096236073,-300.22887608,0.00010958,2]
[323583685,1714096236082,-860.79,0.00010958,2]
[323583686,1714096236091,-609.89,0.00010958,2]
[323583687,1714096236101,-500.0,0.00010958,2]
[323583688,1714096236110,-500.0,0.00010958,2]
[323583689,1714096236119,-500.0,0.00010958,2]
[323583690,1714096236129,-506.03242743,0.00010958,2]
[323583691,1714096236138,-500.0,0.00010958,2]
[323583692,1714096236147,-503.22094779,0.00010958,2]
[323583693,1714096236156,-500.0,0.00010958,2]
[323583694,1714096236165,-500.0,0.00010958,2]
[323583695,1714096236174,-500.0,0.00010958,2]
[323583696,1714096236183,-500.0,0.00010958,2]
[323583697,1714096236192,-500.0,0.00010958,2]
[323583698,1714096236202,-500.0,0.00010958,2]
[323583699,1714096236215,-503.50090434,0.00010958,2]
[323583700,1714096236224,-500.0,0.00010958,2]
[323583701,1714096236233,-500.0,0.00010958,2]
[323583702,1714096236242,-500.0,0.00010958,2]
[323583703,1714096236251,-500.0,0.00010958,2]
[323583704,1714096236261,-500.61176025,0.00010958,2]
[323583705,1714096236271,-500.0,0.00010958,2]
[323583706,1714096236280,-500.0,0.00010958,2]
[323583707,1714096236289,-500.0,0.00010958,2]
[323583708,1714096236298,-500.0,0.00010958,2]
[323583709,1714096236307,-500.0,0.00010958,2]
[323583710,1714096236316,-500.0,0.00010958,2]
[323583711,1714096236325,-500.0,0.00010958,2]
[323583712,1714096236334,-500.0,0.00010958,2]
[323583713,1714096236344,-500.0,0.00010958,2]
[323583714,1714096236354,-500.0,0.00010958,2]
[323583715,1714096236363,-858.9,0.00010958,2]
[323583716,1714096236373,-508.67326269,0.00010958,2]
[323583717,1714096236382,-784.93,0.00010958,2]
[323583718,1714096236392,-507.79633633,0.00010958,2]
[323583719,1714096236401,-500.0,0.00010958,2]
[323583720,1714096236411,-500.0,0.00010958,2]
[323583721,1714096236420,-500.0,0.00010958,2]
[323583722,1714096236429,-500.0,0.00010958,2]
[323583723,1714096236438,-500.0,0.00010958,2]
[323583724,1714096236447,-500.0,0.00010958,2]
[323583725,1714096236459,-500.0,0.00010958,2]
[323583726,1714096236468,-508.23515474,0.00010958,2]
[323583727,1714096236477,-507.08973627,0.00010958,2]
[323583728,1714096236487,-500.0,0.00010958,2]
[323583729,1714096236497,-500.0,0.00010958,2]
[323583730,1714096236506,-680.49,0.00010958,2]
[323583731,1714096236515,-501.81115241,0.00010958,2]
[323583732,1714096236525,-500.0,0.00010958,2]
[323583733,1714096236534,-500.0,0.00010958,2]
[323583734,1714096236543,-504.78570404,0.00010958,2]
[323583735,1714096236552,-500.0,0.00010958,2]
[323583736,1714096236561,-500.0,0.00010958,2]
[323583737,1714096236570,-500.0,0.00010958,2]
[323583738,1714096236580,-503.03327442,0.00010958,2]
[323583739,1714096236589,-500.0,0.00010958,2]
[323583740,1714096236598,-500.0,0.00010958,2]
[323583741,1714096236608,-500.0,0.00010958,2]
[323583742,1714096236617,-500.0,0.00010958,2]
[323583743,1714096236626,-758.13,0.00010958,2]
[323583744,1714096236636,-500.0,0.00010958,2]
[323583745,1714096236646,-443.53110486,0.00010958,2]
[323583746,1714096236656,-729.88,0.00010958,2]
[323583747,1714096236666,-500.0,0.00010958,2]
[323583748,1714096236675,-503.61770067,0.00010958,2]
[323583749,1714096236685,-507.08332142,0.00010958,2]
[323583750,1714096236694,-500.0,0.00010958,2]
[323583751,1714096236703,-500.0,0.00010958,2]
[323583752,1714096236715,-305.67735504,0.00010958,2]
[323583753,1714096236724,-500.0,0.00010958,2]
[323583754,1714096236733,-500.0,0.00010958,2]
[323583755,1714096236743,-500.0,0.00010958,2]
[323583756,1714096236752,-500.0,0.00010958,2]
[323583757,1714096236761,-500.0,0.00010958,2]
[323583758,1714096236770,-500.0,0.00010958,2]
[323583759,1714096236780,-500.0,0.00010958,2]
[323583760,1714096236788,-4617.95,0.00010958,2]
[323583761,1714096236797,-500.0,0.00010958,2]
[323583762,1714096236806,-500.0,0.00010958,2]
[323583763,1714096236815,-504.76677295,0.00010958,2]
[323583764,1714096236825,-500.0,0.00010958,2]
[323583765,1714096236834,-500.0,0.00010958,2]
[323583766,1714096236844,-1229.51,0.00010958,2]
[323583767,1714096236854,-500.0,0.00010958,2]
[323583768,1714096236863,-500.0,0.00010958,2]
[323583769,1714096236873,-527.69,0.00010958,2]
[323583770,1714096236882,-500.75,0.00010958,2]
[323583771,1714096236891,-502.79421763,0.00010958,2]
[323583772,1714096236900,-500.0,0.00010958,2]
[323583773,1714096236910,-822.14,0.00010958,2]
[323583774,1714096236919,-1008.32,0.00010958,2]
[323583775,1714096236929,-605.73249592,0.00010958,2]
[323583776,1714096236938,-502.63590312,0.00010958,2]
[323583777,1714096236948,-500.0,0.00010958,2]
[323583778,1714096236960,-500.0,0.00010958,2]
[323583779,1714096236971,-500.0,0.00010958,2]
[323583780,1714096236980,-500.0,0.00010958,2]
[323583781,1714096236989,-500.0,0.00010958,2]
[323583782,1714096237001,-500.0,0.00010958,2]
[323583783,1714096237010,-500.0,0.00010958,2]
[323583784,1714096237019,-500.0,0.00010958,2]
[323583785,1714096237028,-504.58988921,0.00010958,2]
[323583786,1714096237038,-500.0,0.00010958,2]
[323583787,1714096237047,-500.0,0.00010958,2]
[323583788,1714096237056,-1149.52,0.00010958,2]
[323583789,1714096237066,-500.0,0.00010958,2]
[323583790,1714096237075,-500.0,0.00010958,2]
[323583791,1714096237085,-500.0,0.00010958,2]
[323583792,1714096237094,-500.18933857,0.00010958,2]
[323583793,1714096237103,-500.0,0.00010958,2]
[323583794,1714096237113,-505.33342089,0.00010958,2]
[323583795,1714096237122,-500.0,0.00010958,2]
[323583796,1714096237131,-500.0,0.00010958,2]
[323583797,1714096237140,-500.0,0.00010958,2]
[323583798,1714096237151,-500.0,0.00010958,2]
[323583799,1714096237161,-500.0,0.00010958,2]
[323583800,1714096237172,-500.0,0.00010958,2]
[323583801,1714096237182,-1587.09,0.00010958,2]
[323583802,1714096237193,-937.92,0.00010958,2]
[323583803,1714096237204,-500.0,0.00010958,2]
[323583804,1714096237217,-952.52,0.00010958,2]
[323583805,1714096237227,-500.0,0.00010958,2]
[323583806,1714096237238,-1248.24,0.00010958,2]
[323583807,1714096237248,-500.0,0.00010958,2]
[323583808,1714096237258,-500.0,0.00010958,2]
[323583809,1714096237271,-511.91432593,0.00010958,2]
[323583810,1714096237282,-500.0,0.00010958,2]
[323583811,1714096237292,-500.0,0.00010958,2]
[323583812,1714096237303,-500.0,0.00010958,2]
[323583813,1714096237313,-500.0,0.00010958,2]
[323583814,1714096237323,-558.01,0.00010958,2]
[323583815,1714096237335,-502.6619213,0.00010958,2]
[323583816,1714096237347,-500.0,0.00010958,2]
[323583817,1714096237358,-500.0,0.00010958,2]
[323583818,1714096237369,-641.54,0.00010958,2]
[323583819,1714096237379,-529.85502778,0.00010958,2]
[323583820,1714096237389,-500.0,0.00010958,2]
[323583821,1714096237400,-1346.2,0.00010958,2]
[323583822,1714096237411,-529.14274564,0.00010958,2]
[323583823,1714096237422,-500.0,0.00010958,2]
[323583824,1714096237434,-503.17049066,0.00010958,2]
[323583825,1714096237444,-500.0,0.00010958,2]
[323583826,1714096237454,-500.0,0.00010958,2]
[323583827,1714096237471,-500.0,0.00010958,2]
[323583828,1714096237482,-500.0,0.00010958,2]
[323583829,1714096237493,-681.39,0.00010958,2]
[323583830,1714096237503,-500.0,0.00010958,2]
[323583831,1714096237514,-502.78553181,0.00010958,2]
[323583832,1714096237524,-11380.72,0.00010958,2]
[323583833,1714096237534,-502.82365173,0.00010958,2]
[323583834,1714096237544,-832.29,0.00010958,2]
[323583835,1714096237555,-500.0,0.00010958,2]
[323583836,1714096237564,-500.0,0.00010958,2]
[323583837,1714096237574,-500.0,0.00010958,2]
[323583838,1714096237583,-500.0,0.00010958,2]
[323583839,1714096237593,-500.0,0.00010958,2]
[323583840,1714096237604,-510.0132028,0.00010958,2]
[323583841,1714096237614,-504.03215745,0.00010958,2]
[323583842,1714096237625,-500.0,0.00010958,2]
[323583843,1714096237635,-500.0,0.00010958,2]
[323583844,1714096237645,-2330.91,0.00010958,2]
[323583845,1714096237656,-150.0,0.00010958,2]
[323583846,1714096237668,-500.0,0.00010958,2]
[323583847,1714096237678,-1491.01,0.00010958,2]
[323583848,1714096237688,-502.24646604,0.00010958,2]
[323583849,1714096237698,-1357.45,0.00010958,2]
[323583850,1714096237712,-503.59548726,0.00010958,2]
[323583851,1714096237723,-500.0,0.00010958,2]
[323583852,1714096237733,-783.13,0.00010958,2]
[323583853,1714096237743,-500.0,0.00010958,2]
[323583854,1714096237752,-500.0,0.00010958,2]
[323583855,1714096237762,-502.57645548,0.00010958,2]
[323583856,1714096237772,-500.0,0.00010958,2]
[323583857,1714096237781,-503.08263773,0.00010958,2]
[323583858,1714096237791,-1886.33,0.00010958,2]
[323583859,1714096237801,-500.0,0.00010958,2]
[323583860,1714096237811,-500.0,0.00010958,2]
[323583861,1714096237820,-502.78402665,0.00010958,2]
[323583862,1714096237829,-500.0,0.00010958,2]
[323583863,1714096237838,-2648.31,0.00010958,2]
[323583864,1714096237848,-500.0,0.00010958,2]
[323583865,1714096237858,-500.0,0.00010958,2]
[323583866,1714096237867,-872.41,0.00010958,2]
[323583867,1714096237877,-500.0,0.00010958,2]
[323583868,1714096237886,-500.0,0.00010958,2]
[323583869,1714096237896,-712.0,0.00010958,2]
[323583870,1714096237905,-502.9246736,0.00010958,2]
[323583871,1714096237915,-500.0,0.00010958,2]
[323583872,1714096237924,-500.0,0.00010958,2]
[323583873,1714096237934,-809.15,0.00010958,2]
[323583874,1714096237943,-502.06039455,0.00010958,2]
[323583875,1714096237953,-504.15381249,0.00010958,2]
[323583876,1714096237964,-500.0,0.00010958,2]
[323583877,1714096237974,-167.19275149,0.00010958,2]
[323583878,1714096237983,-1074.92,0.00010958,2]
[323583879,1714096237992,-502.13684479,0.00010958,2]
[323583880,1714096238001,-502.41743992,0.00010958,2]
[323583881,1714096238010,-500.0,0.00010958,2]
[323583882,1714096238019,-617.64,0.00010958,2]
[323583883,1714096238029,-500.0,0.00010958,2]
[323583884,1714096238038,-3159.82,0.00010958,2]
[323583886,1714096238047,-500.0,0.00010958,2]
[323583887,1714096238056,-500.95013178,0.00010958,2]
[323583889,1714096238065,-501.25349393,0.00010958,2]
[323583890,1714096238074,-501.64769551,0.00010958,2]
[323583891,1714096238083,-1082.86,0.00010958,2]
[323583892,1714096238092,-500.0,0.00010958,2]
[323583893,1714096238102,-512.43,0.00010958,2]
[323583894,1714096238111,-663.94,0.00010958,2]
[323583896,1714096238120,-500.0,0.00010958,2]
[323583897,1714096238129,-544.17741303,0.00010958,2]
[323583899,1714096238139,-500.0,0.00010958,2]
[323583900,1714096238148,-500.0,0.00010958,2]
[323583901,1714096238156,-508.77663709,0.00010958,2]
[323583902,1714096238166,-500.0,0.00010958,2]
[323583904,1714096238174,-423.53264891,0.00010958,2]
[323583912,1714096238245,-79.54610482,0.00010958,2]
[323583914,1714096238254,-504.9254987,0.00010958,2]
[323583915,1714096238266,-500.0,0.00010958,2]
[323583916,1714096238275,-554.89783637,0.00010958,2]
[323583917,1714096238284,-503.39317096,0.00010958,2]
[323583918,1714096238293,-503.12104348,0.00010958,2]
[323583919,1714096238303,-504.70922086,0.00010958,2]
[323583920,1714096238312,-500.0,0.00010958,2]
[323583921,1714096238321,-504.43677194,0.00010958,2]
[323583922,1714096238331,-500.0,0.00010958,2]
[323583923,1714096238341,-500.0,0.00010958,2]
[323583924,1714096238350,-504.15909462,0.00010958,2]
[323583925,1714096238359,-500.0,0.00010958,2]
[323583926,1714096238368,-545.10047045,0.00010958,2]
[323583927,1714096238669,-225.78952955,0.00010958,2]
[323583928,1714096238679,-138.25212399,0.00010958,2]
[323583929,1714096238721,-322.91174239,0.00010958,2]
[323584010,1714096240944,-38.83613362,0.00010958,2]
[323584012,1714096240954,-503.23147874,0.00010958,2]
[323584014,1714096240971,-502.16700979,0.00010958,2]
[323584016,1714096240980,-503.7755802,0.00010958,2]
[323584018,1714096240993,-500.0,0.00010958,2]
[323584021,1714096241003,-500.0,0.00010958,2]
[323584023,1714096241013,-500.0,0.00010958,2]
[323584024,1714096241024,-500.0,0.00010958,2]
[323584026,1714096241034,-500.0,0.00010958,2]
[323584028,1714096241044,-500.0,0.00010958,2]
[323584029,1714096241055,-500.0,0.00010958,2]
[323584030,1714096241065,-501.81740213,0.00010958,2]
[323584031,1714096241076,-500.0,0.00010958,2]
[323584032,1714096241088,-500.0,0.00010958,2]
[323584033,1714096241099,-504.51430571,0.00010958,2]
[323584034,1714096241110,-500.0,0.00010958,2]
[323584035,1714096241119,-500.0,0.00010958,2]
[323584036,1714096241129,-500.0,0.00010958,2]
[323584037,1714096241138,-527.86,0.00010958,2]
[323584038,1714096241148,-733.03,0.00010958,2]
[323584039,1714096241162,-501.16495413,0.00010958,2]
[323584040,1714096241172,-504.78259927,0.00010958,2]
[323584041,1714096241182,-500.0,0.00010958,2]
[323584042,1714096241192,-501.97284439,0.00010958,2]
[323584043,1714096241203,-500.0,0.00010958,2]
[323584044,1714096241221,-218.02468606,0.00010958,2]
[323584045,1714096241231,-500.0,0.00010958,2]
[323584046,1714096241241,-500.0,0.00010958,2]
[323584047,1714096241251,-500.0,0.00010958,2]
[323584048,1714096241264,-505.96,0.00010958,2]
[323584049,1714096241274,-500.0,0.00010958,2]
[323584050,1714096241284,-938.9,0.00010958,2]
[323584051,1714096241294,-504.39157279,0.00010958,2]
[323584052,1714096241306,-500.0,0.00010958,2]
[323584053,1714096241317,-507.70933141,0.00010958,2]
[323584054,1714096241327,-554.70493632,0.00010958,2]
[323584055,1714096241337,-550.78,0.00010958,2]
[323584056,1714096241348,-500.0,0.00010958,2]
[323584057,1714096241357,-1334.26,0.00010958,2]
[323584058,1714096241366,-500.0,0.00010958,2]
[323584059,1714096241375,-504.33758682,0.00010958,2]
[323584060,1714096241384,-500.0,0.00010958,2]
[323584061,1714096241394,-503.70548268,0.00010958,2]
[323584062,1714096241403,-504.12903382,0.00010958,2]
[323584063,1714096241412,-502.55248963,0.00010958,2]
[323584064,1714096241422,-1405.03,0.00010958,2]
[323584065,1714096241432,-500.0,0.00010958,2]
[323584066,1714096241443,-500.0,0.00010958,2]
[323584067,1714096241453,-500.0,0.00010958,2]
[323584068,1714096241468,-503.80635038,0.00010958,2]
[323584069,1714096241478,-3654.76,0.00010958,2]
[323584070,1714096241487,-543.33,0.00010958,2]
[323584071,1714096241498,-500.0,0.00010958,2]
[323584072,1714096241507,-503.17827471,0.00010958,2]
[323584073,1714096241519,-500.0,0.00010958,2]
[323584074,1714096241531,-500.0,0.00010958,2]
[323584075,1714096241542,-500.0,0.00010958,2]
[323584076,1714096241552,-595.27,0.00010958,2]
[323584077,1714096241561,-500.0,0.00010958,2]
[323584078,1714096241572,-366.51774072,0.00010958,2]
[323584079,1714096241638,-133.48225928,0.00010958,2]
[323584080,1714096241647,-251.33441711,0.00010958,2]
[323584081,1714096241779,-252.20771038,0.00010958,2]
[323584082,1714096241788,-500.0,0.00010958,2]
[323584083,1714096241798,-507.01772258,0.00010958,2]
[323584084,1714096241809,-507.87,0.00010958,2]
[323584085,1714096241818,-500.0,0.00010958,2]
[323584086,1714096241827,-989.12,0.00010958,2]
[323584087,1714096241836,-1247.55,0.00010958,2]
[323584088,1714096241845,-500.0,0.00010958,2]
[323584089,1714096241854,-500.0,0.00010958,2]
[323584090,1714096241863,-505.2007565,0.00010958,2]
[323584091,1714096241872,-500.0,0.00010958,2]
[323584092,1714096241881,-500.0,0.00010958,2]
[323584093,1714096241890,-500.0,0.00010958,2]
[323584094,1714096241899,-500.0,0.00010958,2]
[323584095,1714096241909,-504.40446027,0.00010958,2]
[323584096,1714096241918,-2672.1,0.00010958,2]
[323584097,1714096241927,-813.8,0.00010958,2]
[323584098,1714096241937,-1857.2,0.00010958,2]
[323584099,1714096241946,-500.0,0.00010958,2]
[323584100,1714096241955,-503.05487386,0.00010958,2]
[323584101,1714096241966,-500.0,0.00010958,2]
[323584102,1714096241975,-346.92746046,0.00010958,2]
[323584103,1714096242009,-2390.77253954,0.00010958,2]
[323584104,1714096242019,-867.31,0.00010958,2]
[323584105,1714096242027,-503.00102154,0.00010958,2]
[323584106,1714096242037,-500.0,0.00010958,2]
[323584107,1714096242046,-505.45721659,0.00010958,2]
[323584108,1714096242056,-500.0,0.00010958,2]
[323584109,1714096242064,-503.90146535,0.00010958,2]
[323584110,1714096242073,-745.62,0.00010958,2]
[323584111,1714096242082,-502.44711439,0.00010958,2]
[323584112,1714096242092,-502.99918553,0.00010958,2]
[323584113,1714096242101,-500.0,0.00010958,2]
[323584114,1714096242111,-500.0,0.00010958,2]
[323584115,1714096242121,-533.54249255,0.00010958,2]
[323584116,1714096242130,-581.81,0.00010958,2]